Cogmind - Beta 16 @@@ ROGUE MODE // 2025.10.31 @ 02:54:13 Player: Not_Jesus8 Result: Destroyed by D-53 Grenadier with Mini Grenade Launcher Performance ------------- Evolutions (0) 0 Regions Visited (2) 400 Robots Destroyed (3) 15 Value Destroyed (73) 73 Prototype IDs (0) 0 Alien Tech Used (0) 0 Bonus (0) 0 TOTAL SCORE: 488 Bonus ------- None Cogmind --------- Core Integrity 0/250 Matter 300/300 Energy 100/100 System Corruption 0% Temperature Cool (0) Movement Core (400) Ox7 Location -10/Mines Parts ------- > --- POWER (1) -------- (None) > --- PROPULSION (2) --- (None) > --- UTILITY (2) ------ Large Storage Unit > --- WEAPON (2) ------- Mining Claw > --- INVENTORY (15) --- Aluminum Leg Aluminum Leg Large Storage Unit Signal Interpreter Peak State ------------ > --- POWER ------------ Light Ion Engine > --- PROPULSION ------- Wheel Wheel > --- UTILITY ---------- Small Storage Unit Medium Storage Unit > --- WEAPON ----------- Assault Rifle > --- INVENTORY -------- Light Treads Light Treads Aluminum Leg Aluminum Leg Signal Interpreter Mining Claw [Rating: 6] Favorites ----------- Power Light Ion Engine Engine Light Ion Engine Propulsion Wheel Treads Light Treads Wheel Wheel Utility Large Storage Unit Storage Large Storage Unit Weapon Assault Rifle Ballistic Gun Assault Rifle Ballistic Cannon Light Cannon Slashing Weapon Mining Claw Build | -11 -10 -10 ------- Run | Yrd Mat Min Slots Evolved . | . . . Power . | . . . Propulsion . | . . . Utility . | . . . Weapon . | . . . Parts Attached 11 | 4 4 3 Power 1 | 1 . . Engine 1 | 1 . . Core . | . . . Reactor . | . . . Propulsion 4 | 2 . 2 Treads 2 | . . 2 Leg . | . . . Wheel 2 | 2 . . Hover . | . . . Flight . | . . . Utility 3 | 1 2 . Device . | . . . Storage 3 | 1 2 . Processor . | . . . Hackware . | . . . Protection . | . . . Artifact . | . . . Weapon 3 | . 2 1 Energy Gun . | . . . Energy Cannon . | . . . Ballistic Gun 1 | . 1 . Ballistic Cannon 1 | . 1 . Launcher . | . . . Special Weapon . | . . . Impact Weapon . | . . . Slashing Weapon 1 | . . 1 Piercing Weapon . | . . . Special Melee Weapon . | . . . Unidentified Prototypes . | . . . Parts Lost 7 | . . 7 Power 1 | . . 1 Propulsion 4 | . . 4 Utility . | . . . Weapon 2 | . . 2 Highest Loss Streak 5 | . . 5 To Critical Strikes . | . . . Average Backups 5 | 1 6 5 Power . | . . . Propulsion 3 | 1 4 3 Utility 1 | . 1 2 Weapon . | . . . Tool/Special . | . . . Unused Backups 4 | . . 4 Power . | . . . Propulsion 2 | . . 2 Utility 2 | . . 2 Weapon . | . . . Tool/Special . | . . . Average Slot Usage (%) 70 | . 75 66 Engine 10 | . 14 7 Treads 5 | . . 11 Wheel 21 | . 28 14 Storage 14 | . 14 14 Ballistic Gun 10 | . 13 7 Ballistic Cannon 5 | . 4 7 Slashing Weapon 1 | . . 3 Peak Build Rating 6 | 4 6 6 Average Rating 4 | 3 5 4 On Entrance 3 | . 4 6 Avg Prop Armor Cover (%) 5 | . . 5 Naked Turns . | . . . Heaviest Build 28 | 8 28 28 Greatest Support 40 | 20 20 40 Greatest Overweight (x) 2 | . 1 2 Average Overweight (x) . | . . 1 Largest Inventory Capacity 15 | 8 15 15 Average Capacity 13 | 7 12 15 Most Carried 8 | 4 8 7 Average Carried 5 | 1 6 5 Final Capacity 15 | 8 15 15 Final Carried 7 | 4 7 4 Class Distribution -------------------- 100% | Mutant Dominant Class ---------------- Mutant | -10/Materials Mutant | -10/Mines Resources | -11 -10 -10 ----------- Run | Yrd Mat Min Matter Collected 266 | 240 . 26 Remotely . | . . . Salvage Created 56 | . . 56 Parts 8 | . . 8 Haulers Intercepted . | . . . Recyclers Shooed . | . . . Parts Field Recycled . | . . . Retrieved Matter . | . . . Parts Self-Destructed . | . . . Prevented . | . . . Parts Restored . | . . . Kills | -11 -10 -10 ------- Run | Yrd Mat Min Combat Hostiles Destroyed 3 | . . 3 Melee 3 | . . 3 Classes Destroyed 2 | . . 2 Swarmer 2 | . . 2 Demolisher 1 | . . 1 Best Kill Streak 2 | . . 2 Combat Bots Only 2 | . . 2 Max Kills in Single Turn 1 | . . 1 Gunslinging . | . . . Exploded . | . . . Melee 1 | . . 1 Uniques/NPCs Destroyed . | . . . Combat | -11 -10 -10 -------- Run | Yrd Mat Min Hostile Shots Fired 162 | . . 162 Missed 53 | . . 53 Hits 109 | . . 109 Projectile 109 | . . 109 AOE 6 | . . 6 Critical Strikes 1 | . . 1 Damage Taken 1021 | . . 1021 Core 258 | . . 258 Absorbed by Shields . | . . . Core Remaining (%) 100 | 100 . . Volleys Fired . | . . . Largest . | . . . Hottest . | . . . Shots Fired . | . . . Gun . | . . . Cannon . | . . . Launcher . | . . . Special . | . . . Kinetic . | . . . Thermal . | . . . Explosive . | . . . Electromagnetic . | . . . Robot Hit Streak . | . . . Robot Miss Streak . | . . . Penetration Max . | . . . Secondary Targets . | . . . Shots Hit Robots 7 | . . 7 Core Hits 4 | . . 4 Critical Kills . | . . . Critical Parts Destroyed . | . . . Critical Strikes . | . . . Melee Attacks 9 | . . 9 Impact . | . . . Slashing 9 | . . 9 Piercing . | . . . Sneak Attacks . | . . . Combat Hostiles . | . . . Follow-up Attacks . | . . . Damage Inflicted 185 | . . 185 Guns . | . . . Cannons . | . . . Explosions . | . . . Melee 167 | . . 167 Ramming 18 | . . 18 Kinetic . | . . . Thermal . | . . . Explosive . | . . . Electromagnetic . | . . . Impact . | . . . Slashing 167 | . . 167 Piercing . | . . . Highest Corruption . | . . . Average Corruption . | . . . Corruption Purged . | . . . Corruption Blocked . | . . . Overload Shots . | . . . Overflow Damage . | . . . Projectiles . | . . . Explosions . | . . . Melee . | . . . Knockbacks . | . . . Impact . | . . . Kinetic . | . . . Secondary . | . . . Self-Inflicted Damage 5 | . . 5 Shots . | . . . Rammed 7 | . . 7 Targets Rammed 8 | . . 8 Kicked . | . . . Crushed 1 | . . 1 Highest Temperature . | . . . Average Temperature . | . . . Received Heat Transfer . | . . . Siege Activations . | . . . Martial Activations . | . . . Shielding Activations . | . . . Robots Disrupted . | . . . Combat Hostiles . | . . . Robots Corrupted . | . . . Combat Hostiles . | . . . Parts Fried . | . . . Impact Corruptions . | . . . Robots Melted . | . . . Combat Hostiles . | . . . Parts Melted . | . . . Heat Transferred . | . . . Parts Sabotaged . | . . . Parts Stolen . | . . . Parts Stripped . | . . . Power Chain Reactions . | . . . Alert | -11 -10 -10 ------- Run | Yrd Mat Min Maximum Alert Level . | . . . Low Security (%) 100 | 100 100 100 Level 1 . | . . . Level 2 . | . . . Level 3 . | . . . Level 4 . | . . . Level 5 . | . . . High Security . | . . . Max Security . | . . . Peak Influence 50 | . 23 50 Initial 3 | . . 3 Average 6 | . 3 10 Influence Increases 101 | . 31 70 Destroy 0b10 Robot/C 60 | . . 60 Destroy Leader 10 | . . 10 Successful Hack 31 | . 31 . Influence Decreases 81 | . 23 58 Entered New Map 5 | . . 5 Time Decay 56 | . 23 33 Lost Part 20 | . . 20 Squads Dispatched . | . . . Investigation . | . . . Extermination . | . . . Reinforcement . | . . . Assault . | . . . Garrison . | . . . Intercept . | . . . Searches Triggered . | . . . Construction Impeded . | . . . Haulers Reinforced . | . . . Active Scanning Responses . | . . . Cargo Convoy Interrupts . | . . . Stealth | -11 -10 -10 --------- Run | Yrd Mat Min Distress Signals . | . . . Communications Jammed . | . . . Distress Signals . | . . . Times Spotted 13 | . 4 9 Peak Tracking Total 5 | . 2 5 Tactical Retreats . | . . . Traps | -11 -10 -10 ------- Run | Yrd Mat Min Traps Triggered . | . . . Indirectly . | . . . Trap Hack Attempts . | . . . Triggered . | . . . Disarmed . | . . . Reprogrammed . | . . . Reused . | . . . Traps Extracted . | . . . Installed . | . . . Triggered . | . . . Machines | -11 -10 -10 ---------- Run | Yrd Mat Min Machines Disabled . | . . . Max in Single Turn . | . . . Machines Repaired . | . . . Machines Dismantled . | . . . Machines Sabotaged . | . . . Overloaded Fab Kills . | . . . Hacking | -11 -10 -10 --------- Run | Yrd Mat Min Machines Accessed 3 | . 3 . Terminals 3 | . 3 . Fabricators . | . . . Repair Stations . | . . . Recycling Units . | . . . Scanalyzers . | . . . Garrison Access . | . . . Total Hacks 10 | . 10 . Successful 6 | . 6 . Failed 4 | . 4 . Catastrophic 1 | . 1 . Database Lockouts . | . . . Manual 10 | . 10 . Terminals 10 | . 10 . Fabricators . | . . . Repair Stations . | . . . Recycling Units . | . . . Scanalyzers . | . . . Garrison Access . | . . . Terminal Hacks 3 | . 3 . Terminal Index 1 | . 1 . Zone Layout 2 | . 2 . Fabricator Hacks . | . . . Repair Station Hacks . | . . . Recycling Unit Hacks . | . . . Scanalyzer . | . . . Garrison Access Hacks . | . . . Unauthorized Hacks 3 | . 3 . Terminals 3 | . 3 . Botnet 3 | . 3 . Fabricators . | . . . Repair Stations . | . . . Recycling Units . | . . . Scanalyzers . | . . . Garrison Access . | . . . Data Cores Recovered . | . . . Used . | . . . Hacking Detections 3 | . 3 . Full Trace Events 1 | . 1 . Feedback Events . | . . . Feedback Blocked . | . . . Robot Schematics Acquired . | . . . Robots Built . | . . . Authchips . | . . . Time . | . . . Total Robot Build Rating . | . . . Part Schematics Acquired . | . . . Parts Built . | . . . Authchips . | . . . Time . | . . . Total Part Build Rating . | . . . Part Studies Acquired . | . . . Parts Repaired . | . . . Time . | . . . Parts Recycled . | . . . Recycled Matter . | . . . Retrieved Matter . | . . . Retrieved Components . | . . . Parts Scanalyzed . | . . . Part Schematics Acquired . | . . . Parts Damaged . | . . . Bothacking | -11 -10 -10 ------------ Run | Yrd Mat Min Used RIF Installer . | . . . Robots Hacked . | . . . Non-combat . | . . . Combat . | . . . Robot Hacks Applied . | . . . Relay Couplers Released . | . . . Fabnet Peak Effective % . | . . . Robots Rewired . | . . . Allies Hacked . | . . . Hacks Repelled . | . . . Allies | -11 -10 -10 -------- Run | Yrd Mat Min Total Allies . | . . . Largest Group . | . . . Highest-Rated Group . | . . . Highest-Rated Ally . | . . . Total Orders . | . . . Ally Attacks . | . . . Total Damage . | . . . Kills . | . . . Allies Corrupted . | . . . Allies Melted . | . . . Intel | -11 -10 -10 ------- Run | Yrd Mat Min Active Infowar (turns) . | . . . Robot Analysis Total . | . . . Derelict Logs Recovered 1 | . . 1 Drone Launches . | . . . Drone Recoveries . | . . . Exploration | -11 -10 -10 ------------- Run | Yrd Mat Min Turns Passed 432 | 48 196 188 Spaces Moved 381 | 48 207 126 Core 1 | 1 . . Treads 33 | . . 33 Legs . | . . . Wheels 347 | 47 207 93 Hover . | . . . Flight . | . . . Fastest Speed 50 | 50 80 95 Average Speed 97 | 79 90 118 Slowest Speed 160 | 80 95 160 Overloaded Moves . | . . . Propulsion Burnouts . | . . . Robots Hopped . | . . . Potential Cave-ins . | . . . Cave-ins Triggered . | . . . Exploration Rate (%) 28 | 3 45 36 Regions Visited 2 Branch Regions 1 Pre-discovered Areas . | . . . Known Exits Taken . | . . . Unknown Exits Taken 2 | 1 1 . Scrap Searched . | . . . Spaces Dug . | . . . Terrain Destroyed . | . . . Melee . | . . . Projectile . | . . . AOE . | . . . Terrain Rammed . | . . . Walls Destroyed . | . . . Machines Disabled . | . . . Actions | -11 -10 -10 --------- Run | Yrd Mat Min Total 416 | 55 215 146 Wait . | . . . Move 379 | 47 206 126 Hop . | . . . Pick Up 7 | 4 3 . Fast Attach 7 | 4 3 . Attach 3 | . . 3 Detach . | . . . Swap 1 | . 1 . Drop 2 | . 2 . Fire . | . . . Melee 9 | . . 9 Ram 5 | . . 5 Kick . | . . . Crush 3 | . . 3 Escape Stasis . | . . . Rewire . | . . . Trap . | . . . Miscellaneous . | . . . Route ------- -11/Scrapyard -10/Materials -10/Mines (discovered 1 exit: [*Mat]) History --------- Turn | Location | Event 23 | -11/Scrapyard | Discovered new exit (range 14) 49 | -11/Scrapyard | Entered Materials 229 | -10/Materials | Discovered new exit (range 16) 245 | -10/Materials | Entered Mines 300 | -10/Mines | Build established: Mutant 305 | -10/Mines | Learned Materials emergency access door positions 348 | -10/Mines | Core integrity fell below 50% 365 | -10/Mines | Assembled infested the area 378 | -10/Mines | Lost 5 parts (1p2n2w) 395 | -10/Mines | Core integrity fell below 20% 421 | -10/Mines | Discovered new exit (range 9) 433 | -10/Mines | Destroyed by D-53 Grenadier with Mini Grenade Launcher Last Messages --------------- 00378_ S-10 Pest destroyed. 00380_ Slammed into C-45 Heavy ARC. 00381_ C-45 Heavy ARC bursts open, deploying its payload. 00381_ D-53 Grenadier unfolds itself. 00381_ Acquired 16 matter. 00383_ Slammed into D-53 Grenadier. 00384_ S-10 Pest destroyed. 00385_ Acquired 4 matter. 00385_ K-01 Serf collects debris. 00400_ D-53 Grenadier destroyed. 00401_ K-01 Serf collects debris. 00407_ S-10 Pest destroyed. 00407_ K-01 Serf collects debris. 00410_ Acquired 6 matter. 00410_ K-01 Serf collects debris. 00421_ EXIT=FOUND 00424_ K-01 Serf collects debris. 00425_ K-01 Serf destroyed. 00429_ Lgt. Treads destroyed. Map ----- +----------------------------------------------------+ | #??????????????????????????????????????????????? | | #??????????????????????????????????????????????? | | ##?????????????????????????????????????????????? | | #####?????????????????????????????????????????? | | ##????????????????????????????????????????? | | *%[ #????????????????????????????????????????? | | = #????????????????????????????????????????? | | * ##???????????????????????????????????????? | | %[ #???????????????????????????????????????? | | ## #???????????????????? ????????????????? | | #### #?????????????????? ?????????????????? | | ##?## ##???????????????? ? #????????????????? | | #???# ###########???? #????????????????? | | ????# ## #### ???????????????? | | ????# * ???????????????? | | ????## [% ###????????????????????? | | ?????## ## ####??????????????????????? | | ??????### # #### ## #?????????????????????????? | | #???????# #####??# ## #???####??????????????????? | | ######### #??????# ## #??## ##?????????????????? | | #??????# ## #??# #?????????????????? | | #??????# ==!### #?????????????????? | | ############??????####% #### ##???????????? | | #???????????????????##! #???????????? | | #???????????????????# %=d #????????????? | | ?????????????????????# @ #???????????? | | ?????????????????????# #???????????? | | ####?????????????????# ## ##???????????? | | #?????????????????## #??????????????? | | ## #?????????????????# = ##??????????????? | | ?# #????????????????#! % #???????????????? | | ?# ######??????????# ]! #???????????????? | | ?# #??????????# ! ??????????????? | | ####### #??????????# ###### ????????????? | | #####?# #??????????# #?????? ???????????? | | #?# #?????????# ??????? #?????????? | | ## #?# #????????# !#??????? ????????? | | ### #?# #????????# #????????# < ###???????? | | ### #?# #???????? #?????????? ##?????????? | | ## #?# #???????# #???????????# ####??????????? | | # ### #?????????#?????????????####?????????????? | | #????????????????????????????????????????? | | ########????????????????????????????????????????? | | ##???????????????????????????????????????????????? | | ?????????????????????????????????????????????????? | | ?????????????????????????????????????????????????? | | ?????????????????????????????????????????????????? | | ?????????????????????????????????????????????????? | | | | | +----------------------------------------------------+ Best States ------------- Heat Dissipation 25 Energy Generation 10 Energy Capacity 125 Matter Stores 300 Matter Capacity 300 Sight Range 16 Terrain Scan Density 10 Evasion (%) 44 Recoil Reduction 2 Item Schematics ----------------- None Robot Schematics ------------------ None Fabricated ------------ Nothing Repaired ---------- Nothing Studied --------- None Alien Tech Used ----------------- None Achievements -------------- None Challenges ------------ None Game ------ Seed AssembledPhasingMask Manual? 0 Play Time 00:04:52 Cumulative 20.1 hours Start 2025.10.31 @ 02:50:50 End 2025.10.31 @ 02:54:13 Sessions 1 Manual Loads 0 Difficulty Rogue Special Mode None Game No. 36 Rogue 36 Adventurer 0 Explorer 0 Win Type - Total 2 Types 2/0/0/0/0/0/0/0/0/0 Lore% 35 Gallery% 26 Achievement% 25 Wizard Run 0 Options --------- Layout 1 ASCII 0 Keyboard 1 Movement Arrows Keybinds 0 Fullscreen 1 Font 16/SmallcapsGlow Map View 50x54 Zoom Use 9% Tactical HUD 1 Map Filters NONE Filters NONE Steam 1 RUN: 26adf264-6285-47a6-ad7d-4964f3ca7cd3